[Event "9th RTU Rapid 2019"]
[Site "Riga"]
[Date "2019.08.04"]
[Round "4.29"]
[White "Solys, Laimutis"]
[Black "Hasani, Takin"]
[Result "1-0"]
[WhiteElo "2143"]
[BlackElo "1849"]
[PlyCount "81"]
[EventDate "2019.08.05"]
[EventType "swiss"]
[EventCountry "LAT"]
[TimeControl "5400+30"]
[WhiteClock "0:00:07"]
[BlackClock "0:07:41"]

1. e4 {[%emt 1:15:22]} c5 {[%emt 1:15:20]} 2. Nf3 {[%emt 0:00:28]} d6 {[%emt 0:00:26]} 3. d4 {[%emt 0:00:27]} Nf6 {[%emt 0:00:26]} 4. Nc3 {[%emt 0:00:26]} cxd4 {[%emt 0:00:27]} 5. Nxd4 {[%emt 0:00:26]} a6 {[%emt 0:00:26]} 6. h3 {[%emt 0:00:43]} e6 {[%emt 0:00:26]} 7. g4 {[%emt 0:00:28]} Nfd7 {[%emt 0:00:26]} 8. Bg2 {[%emt 0:00:33]} Nc6 {[%emt 0:00:32]} 9. Nb3 {[%emt 0:00:38]} Be7 {[%emt 0:00:38]} 10. O-O {[%emt 0:00:28]} b5 {[%emt 0:01:45]} 11. a3 {[%emt 0:00:29]} Bb7 {[%emt 0:00:31]} 12. f4 {[%emt 0:00:29]} Nb6 {[%emt 0:01:15]} 13. g5 {[%emt 0:02:50]} O-O {[%emt 0:04:19]} 14. Qg4 {[%emt 0:01:50]} Rc8 {[%emt 0:01:07]} 15. f5 {[%emt 0:00:45]} Ne5 {[%emt 0:00:44]} 16. Qg3 {[%emt 0:00:27]} Kh8 {[%emt 0:02:08]} 17. Nd4 {[%emt 0:01:05]} Nbc4 {[%emt 0:02:13]} 18. Kh1 {[%emt 0:00:34]} d5 {[%emt 0:02:50]} 19. exd5 {[%emt 0:00:38]} Qb6 {[%emt 0:01:08]} 20. Nce2 {[%emt 0:00:40]} Bc5 {[%emt 0:01:22]} 21. c3 {[%emt 0:00:37]} exf5 {[%emt 0:00:37]} 22. b3 {[%emt 0:00:46]} Bd6 {[%emt 0:01:33]} 23. bxc4 {[%emt 0:00:34]} Nxc4 {[%emt 0:00:27]} 24. Qf2 {[%emt 0:00:38]} g6 {[%emt 0:00:29]} 25. Nc6 {[%emt 0:00:51]} Rxc6 {[%emt 0:00:49]} 26. dxc6 {[%emt 0:00:30]} Bxc6 {[%emt 0:00:26]} 27. Qxb6 {[%emt 0:00:30]} Bxg2+ {[%emt 0:00:26]} 28. Kxg2 {[%emt 0:00:27]} Nxb6 {[%emt 0:00:27]} 29. Be3 {[%emt 0:01:02]} Nc4 {[%emt 0:00:34]} 30. Bd4+ {[%emt 0:00:27]} Kg8 {[%emt 0:00:26]} 31. a4 {[%emt 0:00:47]} Re8 {[%emt 0:00:29]} 32. Rf2 {[%emt 0:00:39]} Be7 {[%emt 0:00:33]} 33. axb5 {[%emt 0:00:52]} axb5 {[%emt 0:00:27]} 34. Bf6 {[%emt 0:00:27]} Bc5 {[%emt 0:00:30]} 35. Nd4 {[%emt 0:00:33]} Ne3+ {[%emt 0:00:35]} 36. Kf3 {[%emt 0:00:30]} Nd5 {[%emt 0:00:28]} 37. Re2 {[%emt 0:00:33]} Rc8 {[%emt 0:00:29]} 38. Rea2 {[%emt 0:00:49]} Nb6 {[%emt 0:00:40]} 39. Nxb5 {[%emt 0:00:33]} h6 {[%emt 0:00:26]} 40. h4 {[%emt 0:00:28]} Bf8 {[%emt 0:00:33]} 41. Bd4 {[%emt 0:00:30]} 1-0

[Event "9th RTU Rapid 2019"]
[Site "Riga"]
[Date "2019.08.04"]
[Round "4.30"]
[White "Smirnova, Ekaterina"]
[Black "Nair, Sanjeev"]
[Result "1-0"]
[WhiteElo "2134"]
[BlackElo "1841"]
[PlyCount "75"]
[EventDate "2019.08.05"]
[EventType "swiss"]
[EventCountry "LAT"]
[TimeControl "5400+30"]
[WhiteClock "0:00:15"]
[BlackClock "0:02:52"]

1. d4 {[%emt 1:15:21]} Nf6 {[%emt 1:15:22]} 2. c4 {[%emt 0:00:26]} g6 {[%emt 0:00:29]} 3. Nc3 {[%emt 0:00:27]} Bg7 {[%emt 0:00:26]} 4. e4 {[%emt 0:00:27]} d6 {[%emt 0:00:26]} 5. Be2 {[%emt 0:00:29]} O-O {[%emt 0:00:28]} 6. Nf3 {[%emt 0:00:26]} e5 {[%emt 0:00:30]} 7. O-O {[%emt 0:00:31]} Nc6 {[%emt 0:00:26]} 8. d5 {[%emt 0:00:29]} Ne7 {[%emt 0:00:27]} 9. Ne1 {[%emt 0:00:57]} Nd7 {[%emt 0:00:30]} 10. Nd3 {[%emt 0:00:39]} f5 {[%emt 0:00:46]} 11. b4 {[%emt 0:00:46]} Nf6 {[%emt 0:02:28]} 12. f3 {[%emt 0:00:33]} f4 {[%emt 0:00:32]} 13. c5 {[%emt 0:00:32]} g5 {[%emt 0:00:29]} 14. h3 {[%emt 0:00:35]} Ng6 {[%emt 0:00:45]} 15. Bd2 {[%emt 0:01:03]} h5 {[%emt 0:00:35]} 16. Nf2 {[%emt 0:00:28]} Rf7 {[%emt 0:00:45]} 17. Rc1 {[%emt 0:00:51]} Bf8 {[%emt 0:00:34]} 18. cxd6 {[%emt 0:00:39]} cxd6 {[%emt 0:00:42]} 19. Qc2 {[%emt 0:02:12]} g4 {[%emt 0:04:17]} 20. fxg4 {[%emt 0:00:41]} hxg4 {[%emt 0:00:26]} 21. hxg4 {[%emt 0:00:26]} Rh7 {[%emt 0:01:49]} 22. Nb5 {[%emt 0:01:45]} Nxg4 {[%emt 0:01:49]} 23. Nxg4 {[%emt 0:01:40]} Bxg4 {[%emt 0:00:41]} 24. Bxg4 {[%emt 0:02:06]} Qb6+ {[%emt 0:00:27]} 25. Rf2 {[%emt 0:00:26]} Qxb5 {[%emt 0:00:28]} 26. Be6+ {[%emt 0:01:32]} Kh8 {[%emt 0:00:39]} 27. Bf5 {[%emt 0:00:54]} Qe8 {[%emt 0:02:00]} 28. Qc3 {[%emt 0:00:52]} Bg7 {[%emt 0:00:50]} 29. Rf3 {[%emt 0:00:45]} Bf6 {[%emt 0:00:40]} 30. Rh3 {[%emt 0:00:42]} Bh4 {[%emt 0:01:45]} 31. Qf3 {[%emt 0:01:02]} Qf7 {[%emt 0:01:01]} 32. Qg4 {[%emt 0:00:52]} Rg8 {[%emt 0:02:08]} 33. Be6 {[%emt 0:00:54]} Ne7 {[%emt 0:00:26]} 34. Qxg8+ {[%emt 0:01:30]} Qxg8 {[%emt 0:00:26]} 35. Bxg8 {[%emt 0:00:27]} Kxg8 {[%emt 0:00:26]} 36. Rc7 {[%emt 0:00:43]} Ng6 {[%emt 0:00:51]} 37. Rxh7 {[%emt 0:00:29]} Kxh7 {[%emt 0:00:26]} 38. Be1 {[%emt 0:00:31]} 1-0

[Event "9th RTU Rapid 2019"]
[Site "Riga"]
[Date "2019.08.04"]
[Round "4.31"]
[White "Vaskevicius, Augustas"]
[Black "Radkov, Bazhen D."]
[Result "0-1"]
[WhiteElo "2022"]
[BlackElo "2133"]
[PlyCount "92"]
[EventDate "2019.08.05"]
[EventType "swiss"]
[EventCountry "LAT"]
[TimeControl "5400+30"]
[WhiteClock "0:00:37"]
[BlackClock "0:00:21"]

1. e4 {[%emt 1:15:22]} e5 {[%emt 1:15:23]} 2. Nf3 {[%emt 0:00:36]} Nc6 {[%emt 0:00:27]} 3. Bc4 {[%emt 0:00:27]} Nf6 {[%emt 0:00:26]} 4. d3 {[%emt 0:00:44]} Bc5 {[%emt 0:00:28]} 5. O-O {[%emt 0:00:33]} a6 {[%emt 0:00:30]} 6. c3 {[%emt 0:00:42]} d6 {[%emt 0:00:47]} 7. Bb3 {[%emt 0:00:30]} h6 {[%emt 0:00:39]} 8. Nbd2 {[%emt 0:00:57]} O-O {[%emt 0:00:33]} 9. Re1 {[%emt 0:00:31]} Re8 {[%emt 0:01:05]} 10. Nf1 {[%emt 0:00:40]} Be6 {[%emt 0:00:54]} 11. Be3 {[%emt 0:02:05]} Bxe3 {[%emt 0:02:40]} 12. Nxe3 {[%emt 0:00:34]} d5 {[%emt 0:00:37]} 13. exd5 {[%emt 0:04:05]} Nxd5 {[%emt 0:00:27]} 14. Nxd5 {[%emt 0:01:30]} Bxd5 {[%emt 0:00:27]} 15. Bxd5 {[%emt 0:01:14]} Qxd5 {[%emt 0:00:27]} 16. Qc2 {[%emt 0:00:49]} Rad8 {[%emt 0:00:37]} 17. Re3 {[%emt 0:01:18]} Kh8 {[%emt 0:01:13]} 18. h3 {[%emt 0:01:01]} f5 {[%emt 0:01:34]} 19. Rae1 {[%emt 0:00:58]} Re6 {[%emt 0:04:27]} 20. Qb3 {[%emt 0:02:11]} f4 {[%emt 0:01:07]} 21. Qxd5 {[%emt 0:01:55]} Rxd5 {[%emt 0:00:28]} 22. Re4 {[%emt 0:00:27]} Rxd3 {[%emt 0:00:58]} 23. Rxf4 {[%emt 0:00:34]} exf4 {[%emt 0:02:44]} 24. Rxe6 {[%emt 0:00:27]} Rd1+ {[%emt 0:00:26]} 25. Re1 {[%emt 0:00:49]} Rxe1+ {[%emt 0:01:04]} 26. Nxe1 {[%emt 0:00:26]} Ne5 {[%emt 0:00:26]} 27. Kf1 {[%emt 0:00:39]} Kg8 {[%emt 0:00:38]} 28. Ke2 {[%emt 0:00:26]} g5 {[%emt 0:00:53]} 29. Nd3 {[%emt 0:00:58]} Nd7 {[%emt 0:00:46]} 30. h4 {[%emt 0:00:36]} Kf7 {[%emt 0:00:30]} 31. hxg5 {[%emt 0:00:27]} hxg5 {[%emt 0:00:26]} 32. g3 {[%emt 0:00:58]} fxg3 {[%emt 0:00:31]} 33. fxg3 {[%emt 0:00:26]} Ke6 {[%emt 0:00:56]} 34. Kf3 {[%emt 0:00:33]} Kf5 {[%emt 0:00:34]} 35. g4+ {[%emt 0:00:35]} Ke6 {[%emt 0:00:26]} 36. b3 {[%emt 0:00:36]} Ne5+ {[%emt 0:00:30]} 37. Nxe5 {[%emt 0:00:23]} Kxe5 {[%emt 0:00:25]} 38. Ke3 {[%emt 0:00:27]} a5 {[%emt 0:00:48]} 39. a3 {[%emt 0:00:43]} b5 {[%emt 0:00:37]} 40. a4 {[%emt 0:00:41]} bxa4 {[%emt 0:00:44]} 41. bxa4 {[%emt 0:00:26]} c6 {[%emt 0:00:31]} 42. Kd3 {[%emt 0:00:35]} Kf4 {[%emt 0:00:28]} 43. Kc4 {[%emt 0:00:25]} Kxg4 {[%emt 0:00:26]} 44. Kc5 {[%emt 0:00:27]} Kf4 {[%emt 0:00:29]} 45. Kxc6 {[%emt 0:00:26]} g4 {[%emt 0:00:25]} 46. c4 {[%emt 0:00:27]} g3 {[%emt 0:00:26]} 0-1

[Event "9th RTU Rapid 2019"]
[Site "Riga"]
[Date "2019.08.04"]
[Round "4.32"]
[White "Rudovskii, Filipp"]
[Black "Rychagov, Nikita"]
[Result "1-0"]
[WhiteElo "2127"]
[BlackElo "1596"]
[PlyCount "123"]
[EventDate "2019.08.05"]
[EventType "swiss"]
[EventCountry "LAT"]
[TimeControl "5400+30"]
[WhiteClock "0:01:29"]
[BlackClock "0:00:30"]

1. e4 {[%emt 1:15:22]} e5 {[%emt 1:15:20]} 2. Nf3 {[%emt 0:00:27]} Nc6 {[%emt 0:00:26]} 3. d4 {[%emt 0:00:26]} exd4 {[%emt 0:00:26]} 4. Nxd4 {[%emt 0:00:28]} Nf6 {[%emt 0:00:25]} 5. Nxc6 {[%emt 0:00:27]} bxc6 {[%emt 0:00:26]} 6. e5 {[%emt 0:00:27]} Qe7 {[%emt 0:00:27]} 7. Qe2 {[%emt 0:00:26]} Nd5 {[%emt 0:00:25]} 8. c4 {[%emt 0:00:26]} Ba6 {[%emt 0:00:26]} 9. b3 {[%emt 0:00:26]} g6 {[%emt 0:00:26]} 10. f4 {[%emt 0:00:27]} d6 {[%emt 0:00:40]} 11. Qf2 {[%emt 0:00:46]} Nf6 {[%emt 0:00:26]} 12. Bb2 {[%emt 0:03:50]} Bg7 {[%emt 0:00:44]} 13. Qf3 {[%emt 0:03:33]} Bb7 {[%emt 0:00:27]} 14. Be2 {[%emt 0:02:08]} dxe5 {[%emt 0:00:26]} 15. O-O {[%emt 0:00:42]} exf4 {[%emt 0:01:34]} 16. Nc3 {[%emt 0:02:51]} O-O {[%emt 0:02:04]} 17. Qxf4 {[%emt 0:00:27]} Qd6 {[%emt 0:01:50]} 18. Qf3 {[%emt 0:00:55]} Nd7 {[%emt 0:03:57]} 19. Rad1 {[%emt 0:01:04]} Qc5+ {[%emt 0:00:26]} 20. Kh1 {[%emt 0:00:36]} Ne5 {[%emt 0:00:28]} 21. Qg3 {[%emt 0:00:37]} Rae8 {[%emt 0:01:37]} 22. Ne4 {[%emt 0:02:12]} Qe7 {[%emt 0:00:48]} 23. Bd4 {[%emt 0:00:48]} Nxc4 {[%emt 0:03:53]} 24. Bxg7 {[%emt 0:00:43]} Kxg7 {[%emt 0:00:28]} 25. Nf6 {[%emt 0:01:03]} Qxe2 {[%emt 0:00:48]} 26. Nxe8+ {[%emt 0:00:29]} Rxe8 {[%emt 0:00:03]} 27. bxc4 {[%emt 0:00:27]} c5 {[%emt 0:00:56]} 28. Qf2 {[%emt 0:01:04]} Qxf2 {[%emt 0:01:06]} 29. Rxf2 {[%emt 0:00:26]} Re4 {[%emt 0:00:29]} 30. h3 {[%emt 0:00:26]} Bc6 {[%emt 0:00:33]} 31. Rd8 {[%emt 0:00:35]} Rxc4 {[%emt 0:00:47]} 32. Rc8 {[%emt 0:00:26]} Rc1+ {[%emt 0:00:31]} 33. Kh2 {[%emt 0:00:26]} Bd5 {[%emt 0:00:27]} 34. Rxc7 {[%emt 0:00:28]} a6 {[%emt 0:00:40]} 35. Ra7 {[%emt 0:00:35]} c4 {[%emt 0:00:29]} 36. Rxa6 {[%emt 0:00:42]} c3 {[%emt 0:00:26]} 37. Ra5 {[%emt 0:00:26]} c2 {[%emt 0:00:38]} 38. Rc5 {[%emt 0:00:28]} Bxa2 {[%emt 0:00:30]} 39. Rcxc2 {[%emt 0:00:26]} Rxc2 {[%emt 0:00:27]} 40. Rxc2 {[%emt 0:00:27]} Be6 {[%emt 0:00:28]} 41. Kg3 {[%emt 0:00:27]} g5 {[%emt 0:00:35]} 42. Kf3 {[%emt 0:00:28]} h5 {[%emt 0:00:28]} 43. Rc5 {[%emt 0:00:35]} g4+ {[%emt 0:00:26]} 44. Kg3 {[%emt 0:00:28]} gxh3 {[%emt 0:00:33]} 45. gxh3 {[%emt 0:00:27]} Kg6 {[%emt 0:00:27]} 46. Kh4 {[%emt 0:00:27]} Bf5 {[%emt 0:00:28]} 47. Rc6+ {[%emt 0:00:38]} Be6 {[%emt 0:00:30]} 48. Rc5 {[%emt 0:00:30]} Bd7 {[%emt 0:01:05]} 49. Rg5+ {[%emt 0:00:32]} Kf6 {[%emt 0:00:28]} 50. Rxh5 {[%emt 0:00:27]} Kg6 {[%emt 0:00:30]} 51. Rg5+ {[%emt 0:00:26]} Kf6 {[%emt 0:00:25]} 52. Rg3 {[%emt 0:00:28]} Bf5 {[%emt 0:00:26]} 53. Ra3 {[%emt 0:00:28]} Bg6 {[%emt 0:00:26]} 54. Ra6+ {[%emt 0:00:29]} Kf5 {[%emt 0:00:27]} 55. Ra5+ {[%emt 0:00:30]} Kf4 {[%emt 0:00:26]} 56. Ra4+ {[%emt 0:00:29]} Be4 {[%emt 0:00:43]} 57. Kh5 {[%emt 0:00:38]} f5 {[%emt 0:00:26]} 58. h4 {[%emt 0:00:35]} Kg3 {[%emt 0:00:33]} 59. Kg5 {[%emt 0:00:29]} Bc2 {[%emt 0:00:37]} 60. Rb4 {[%emt 0:00:34]} Be4 {[%emt 0:00:42]} 61. h5 {[%emt 0:00:27]} Bd3 {[%emt 0:00:27]} 62. h6 {[%emt 0:00:30]} 1-0

[Event "9th RTU Rapid 2019"]
[Site "Riga"]
[Date "2019.08.04"]
[Round "4.33"]
[White "Pavlovs, Nikita"]
[Black "Gudovskis, Konstantins"]
[Result "0-1"]
[WhiteElo "1845"]
[BlackElo "2015"]
[PlyCount "52"]
[EventDate "2019.08.05"]
[EventType "swiss"]
[EventCountry "LAT"]
[TimeControl "5400+30"]
[WhiteClock "0:05:21"]
[BlackClock "0:00:11"]

1. c4 {[%emt 1:15:22]} e5 {[%emt 1:15:22]} 2. Nc3 {[%emt 0:00:27]} Nc6 {[%emt 0:00:27]} 3. Nf3 {[%emt 0:00:27]} Nf6 {[%emt 0:00:32]} 4. e3 {[%emt 0:00:27]} g6 {[%emt 0:00:31]} 5. d4 {[%emt 0:00:28]} exd4 {[%emt 0:00:36]} 6. exd4 {[%emt 0:00:28]} d6 {[%emt 0:00:41]} 7. Be2 {[%emt 0:00:31]} Bg7 {[%emt 0:00:27]} 8. O-O {[%emt 0:00:29]} O-O {[%emt 0:00:29]} 9. b3 {[%emt 0:01:19]} Re8 {[%emt 0:00:50]} 10. Bb2 {[%emt 0:00:32]} Bf5 {[%emt 0:00:44]} 11. d5 {[%emt 0:02:54]} Ne5 {[%emt 0:01:32]} 12. Nxe5 {[%emt 0:03:30]} Rxe5 {[%emt 0:00:31]} 13. Bf3 {[%emt 0:01:33]} a6 {[%emt 0:01:08]} 14. Ne2 {[%emt 0:01:35]} Re7 {[%emt 0:00:44]} 15. Ng3 {[%emt 0:01:53]} Bd7 {[%emt 0:01:08]} 16. h4 {[%emt 0:00:42]} h5 {[%emt 0:01:55]} 17. Qd2 {[%emt 0:00:51]} Ng4 {[%emt 0:03:13]} 18. Bxg7 {[%emt 0:02:45]} Kxg7 {[%emt 0:00:28]} 19. Nxh5+ {[%emt 0:01:52]} gxh5 {[%emt 0:00:41]} 20. Qg5+ {[%emt 0:00:27]} Kh7 {[%emt 0:02:55]} 21. Qxh5+ {[%emt 0:01:15]} Nh6 {[%emt 0:00:27]} 22. g4 {[%emt 0:00:49]} Bxg4 {[%emt 0:00:27]} 23. Bxg4 {[%emt 0:00:27]} Re5 {[%emt 0:00:28]} 24. Bf5+ {[%emt 0:00:51]} Rxf5 {[%emt 0:00:27]} 25. Qe2 {[%emt 0:00:27]} Qxh4 {[%emt 0:00:29]} 26. f3 {[%emt 0:00:28]} Rg8+ {[%emt 0:00:27]} 0-1

[Event "9th RTU Rapid 2019"]
[Site "Riga"]
[Date "2019.08.04"]
[Round "5.1"]
[White "Saduakassova, Dinara"]
[Black "Svane, Rasmus"]
[Result "0-1"]
[WhiteElo "2437"]
[BlackElo "2612"]
[PlyCount "96"]
[EventDate "2019.08.05"]
[EventType "swiss"]
[EventCountry "LAT"]
[TimeControl "5400+30"]
[WhiteClock "0:00:18"]
[BlackClock "0:00:39"]

1. d4 {[%emt 1:15:22]} d5 {[%emt 1:15:21]} 2. c4 {[%emt 0:00:26]} c6 {[%emt 0:00:27]} 3. Nf3 {[%emt 0:00:26]} Nf6 {[%emt 0:00:26]} 4. e3 {[%emt 0:00:26]} Bf5 {[%emt 0:00:29]} 5. Nc3 {[%emt 0:00:26]} a6 {[%emt 0:00:28]} 6. Bd3 {[%emt 0:00:33]} Bg6 {[%emt 0:00:27]} 7. O-O {[%emt 0:00:27]} e6 {[%emt 0:00:28]} 8. Re1 {[%emt 0:00:29]} Bb4 {[%emt 0:01:29]} 9. Bxg6 {[%emt 0:02:18]} hxg6 {[%emt 0:00:28]} 10. Bd2 {[%emt 0:01:37]} dxc4 {[%emt 0:02:26]} 11. b3 {[%emt 0:00:49]} Bxc3 {[%emt 0:01:12]} 12. Bxc3 {[%emt 0:00:26]} Nd5 {[%emt 0:00:46]} 13. Rc1 {[%emt 0:02:00]} Nxc3 {[%emt 0:00:41]} 14. Rxc3 {[%emt 0:00:27]} cxb3 {[%emt 0:00:38]} 15. Qxb3 {[%emt 0:00:41]} b5 {[%emt 0:04:47]} 16. Qa3 {[%emt 0:02:42]} Qe7 {[%emt 0:00:43]} 17. Qa5 {[%emt 0:01:50]} Qd8 {[%emt 0:02:31]} 18. Qa3 {[%emt 0:00:58]} a5 {[%emt 0:01:07]} 19. Qc5 {[%emt 0:00:32]} Ra6 {[%emt 0:00:28]} 20. Rec1 {[%emt 0:01:10]} Rh5 {[%emt 0:01:25]} 21. Ne5 {[%emt 0:01:54]} Nd7 {[%emt 0:00:39]} 22. Qd6 {[%emt 0:02:23]} Nxe5 {[%emt 0:00:30]} 23. Qxd8+ {[%emt 0:00:28]} Kxd8 {[%emt 0:00:26]} 24. dxe5 {[%emt 0:00:25]} Rxe5 {[%emt 0:01:02]} 25. Rxc6 {[%emt 0:00:26]} Rxc6 {[%emt 0:00:29]} 26. Rxc6 {[%emt 0:00:26]} Rd5 {[%emt 0:01:11]} 27. g4 {[%emt 0:00:26]} Rd2 {[%emt 0:00:48]} 28. Rc5 {[%emt 0:00:27]} Rxa2 {[%emt 0:01:03]} 29. Rxb5 {[%emt 0:00:26]} Kc7 {[%emt 0:00:28]} 30. Kg2 {[%emt 0:00:34]} a4 {[%emt 0:00:50]} 31. h4 {[%emt 0:00:37]} a3 {[%emt 0:00:27]} 32. Ra5 {[%emt 0:00:37]} Kb6 {[%emt 0:00:25]} 33. Ra8 {[%emt 0:00:26]} Kc5 {[%emt 0:01:10]} 34. Ra7 {[%emt 0:00:28]} Kb4 {[%emt 0:00:27]} 35. Rxf7 {[%emt 0:00:57]} Rc2 {[%emt 0:00:27]} 36. Rb7+ {[%emt 0:01:03]} Kc3 {[%emt 0:00:33]} 37. Rxg7 {[%emt 0:00:43]} a2 {[%emt 0:00:26]} 38. Ra7 {[%emt 0:00:27]} Kb3 {[%emt 0:00:36]} 39. Kg3 {[%emt 0:01:13]} Rc4 {[%emt 0:00:28]} 40. Rxa2 {[%emt 0:00:28]} Kxa2 {[%emt 0:00:26]} 41. h5 {[%emt 0:00:32]} gxh5 {[%emt 0:00:40]} 42. gxh5 {[%emt 0:00:26]} Kb3 {[%emt 0:00:32]} 43. h6 {[%emt 0:00:30]} Kc3 {[%emt 0:00:27]} 44. e4 {[%emt 0:00:49]} Kd4 {[%emt 0:00:30]} 45. Kf4 {[%emt 0:00:28]} Rc8 {[%emt 0:00:29]} 46. f3 {[%emt 0:00:30]} Rf8+ {[%emt 0:00:29]} 47. Kg5 {[%emt 0:00:26]} Rxf3 {[%emt 0:00:30]} 48. h7 {[%emt 0:00:41]} Rh3 {[%emt 0:00:27]} 0-1

[Event "9th RTU Rapid 2019"]
[Site "Riga"]
[Date "2019.08.04"]
[Round "5.2"]
[White "Pultinevicius, Paulius"]
[Black "Gagare, Shardul"]
[Result "1/2-1/2"]
[WhiteElo "2501"]
[BlackElo "2430"]
[PlyCount "59"]
[EventDate "2019.08.05"]
[EventType "swiss"]
[EventCountry "LAT"]
[TimeControl "5400+30"]
[WhiteClock "0:03:50"]
[BlackClock "0:02:25"]

1. d4 {[%emt 1:15:22]} Nf6 {[%emt 1:15:22]} 2. c4 {[%emt 0:00:30]} e6 {[%emt 0:00:27]} 3. Nf3 {[%emt 0:00:27]} d5 {[%emt 0:00:27]} 4. Nc3 {[%emt 0:00:27]} Be7 {[%emt 0:00:29]} 5. Bg5 {[%emt 0:00:34]} O-O {[%emt 0:00:30]} 6. e3 {[%emt 0:00:26]} h6 {[%emt 0:00:27]} 7. Bh4 {[%emt 0:00:26]} b6 {[%emt 0:00:26]} 8. cxd5 {[%emt 0:00:52]} Nxd5 {[%emt 0:00:30]} 9. Bxe7 {[%emt 0:00:29]} Qxe7 {[%emt 0:00:27]} 10. Nxd5 {[%emt 0:00:45]} exd5 {[%emt 0:00:27]} 11. Rc1 {[%emt 0:00:26]} Be6 {[%emt 0:01:03]} 12. Qa4 {[%emt 0:00:34]} c5 {[%emt 0:00:34]} 13. Qa3 {[%emt 0:00:35]} Rc8 {[%emt 0:00:33]} 14. Bb5 {[%emt 0:00:27]} Kf8 {[%emt 0:00:45]} 15. dxc5 {[%emt 0:01:57]} bxc5 {[%emt 0:00:27]} 16. O-O {[%emt 0:00:48]} Nd7 {[%emt 0:02:28]} 17. Bxd7 {[%emt 0:03:07]} Bxd7 {[%emt 0:00:27]} 18. Rfd1 {[%emt 0:00:54]} Be6 {[%emt 0:00:27]} 19. Ne1 {[%emt 0:00:37]} Rab8 {[%emt 0:01:19]} 20. Rc2 {[%emt 0:00:40]} c4 {[%emt 0:01:23]} 21. Qc3 {[%emt 0:00:35]} Qb4 {[%emt 0:01:37]} 22. Qe5 {[%emt 0:00:31]} Qa4 {[%emt 0:01:05]} 23. a3 {[%emt 0:02:00]} Rb6 {[%emt 0:01:48]} 24. Rcd2 {[%emt 0:00:43]} Qc6 {[%emt 0:02:36]} 25. Nc2 {[%emt 0:01:42]} Qc7 {[%emt 0:00:40]} 26. Qd4 {[%emt 0:01:14]} Qc5 {[%emt 0:01:25]} 27. Qe5 {[%emt 0:01:03]} Qc7 {[%emt 0:00:32]} 28. Qd4 {[%emt 0:00:27]} Qc5 {[%emt 0:01:13]} 29. Qe5 {[%emt 0:02:46]} Qc7 {[%emt 0:00:46]} 30. Qd4 {[%emt 0:01:11]} 1/2-1/2

[Event "9th RTU Rapid 2019"]
[Site "Riga"]
[Date "2019.08.04"]
[Round "5.3"]
[White "Kopylov, Michael"]
[Black "Kantans, Toms"]
[Result "1-0"]
[WhiteElo "2414"]
[BlackElo "2471"]
[PlyCount "59"]
[EventDate "2019.08.05"]
[EventType "swiss"]
[EventCountry "LAT"]
[TimeControl "5400+30"]
[WhiteClock "0:00:10"]
[BlackClock "0:00:15"]

1. d4 {[%emt 1:16:19]} Nf6 {[%emt 1:15:22]} 2. c4 {[%emt 0:00:26]} g6 {[%emt 0:00:29]} 3. g3 {[%emt 0:00:26]} Bg7 {[%emt 0:00:30]} 4. Bg2 {[%emt 0:00:27]} d5 {[%emt 0:00:27]} 5. cxd5 {[%emt 0:00:28]} Nxd5 {[%emt 0:00:27]} 6. Nf3 {[%emt 0:00:27]} O-O {[%emt 0:00:28]} 7. O-O {[%emt 0:00:30]} Nc6 {[%emt 0:01:05]} 8. Nc3 {[%emt 0:00:27]} e5 {[%emt 0:01:41]} 9. Nxd5 {[%emt 0:01:48]} e4 {[%emt 0:00:29]} 10. Ne5 {[%emt 0:04:18]} Qxd5 {[%emt 0:00:29]} 11. Nxc6 {[%emt 0:00:27]} Qxc6 {[%emt 0:00:51]} 12. Bf4 {[%emt 0:00:45]} Bg4 {[%emt 0:04:39]} 13. h3 {[%emt 0:01:36]} Be6 {[%emt 0:00:27]} 14. Rc1 {[%emt 0:01:02]} Qd5 {[%emt 0:00:26]} 15. Rxc7 {[%emt 0:01:10]} Rac8 {[%emt 0:01:26]} 16. Rxc8 {[%emt 0:02:26]} Rxc8 {[%emt 0:00:26]} 17. Qb1 {[%emt 0:00:26]} Qxd4 {[%emt 0:02:55]} 18. Bxe4 {[%emt 0:01:42]} Bxa2 {[%emt 0:01:49]} 19. Qxa2 {[%emt 0:00:44]} Qxe4 {[%emt 0:00:26]} 20. Qxa7 {[%emt 0:01:10]} Bxb2 {[%emt 0:00:27]} 21. Qa2 {[%emt 0:02:33]} Bd4 {[%emt 0:04:24]} 22. Bh6 {[%emt 0:00:50]} Qf5 {[%emt 0:00:58]} 23. Kg2 {[%emt 0:00:43]} g5 {[%emt 0:00:34]} 24. e3 {[%emt 0:00:39]} Bf6 {[%emt 0:00:32]} 25. Rd1 {[%emt 0:00:32]} Qe4+ {[%emt 0:00:31]} 26. Kg1 {[%emt 0:00:27]} Qf3 {[%emt 0:00:35]} 27. Qd5 {[%emt 0:00:31]} Qh5 {[%emt 0:00:26]} 28. Qd7 {[%emt 0:00:04]} Rb8 {[%emt 0:00:32]} 29. Qd6 {[%emt 0:00:54]} Ra8 {[%emt 0:00:29]} 30. Qxf6 {[%emt 0:00:28]} 1-0

[Event "9th RTU Rapid 2019"]
[Site "Riga"]
[Date "2019.08.04"]
[Round "5.4"]
[White "Vishnu Prasanna. V"]
[Black "Korchmar, Vasiliy"]
[Result "0-1"]
[WhiteElo "2465"]
[BlackElo "2413"]
[PlyCount "92"]
[EventDate "2019.08.05"]
[EventType "swiss"]
[EventCountry "LAT"]
[TimeControl "5400+30"]
[WhiteClock "0:00:19"]
[BlackClock "0:00:16"]

1. e4 {[%emt 1:15:23]} e5 {[%emt 1:15:22]} 2. Nf3 {[%emt 0:00:27]} Nc6 {[%emt 0:00:26]} 3. Bc4 {[%emt 0:00:27]} Bc5 {[%emt 0:00:27]} 4. c3 {[%emt 0:00:27]} Nf6 {[%emt 0:00:27]} 5. d4 {[%emt 0:00:27]} exd4 {[%emt 0:00:29]} 6. e5 {[%emt 0:00:28]} d5 {[%emt 0:00:46]} 7. Be2 {[%emt 0:00:27]} Ne4 {[%emt 0:00:36]} 8. cxd4 {[%emt 0:00:27]} Bb6 {[%emt 0:01:03]} 9. O-O {[%emt 0:00:31]} O-O {[%emt 0:00:27]} 10. Nc3 {[%emt 0:00:32]} f6 {[%emt 0:01:49]} 11. exf6 {[%emt 0:00:28]} Nxf6 {[%emt 0:01:51]} 12. h3 {[%emt 0:00:31]} Ne7 {[%emt 0:00:37]} 13. Bd3 {[%emt 0:00:33]} Bf5 {[%emt 0:00:38]} 14. Re1 {[%emt 0:00:28]} c6 {[%emt 0:01:11]} 15. Bf4 {[%emt 0:01:59]} Bxd3 {[%emt 0:00:33]} 16. Qxd3 {[%emt 0:00:27]} Ng6 {[%emt 0:00:29]} 17. Bh2 {[%emt 0:00:27]} Nh5 {[%emt 0:02:17]} 18. Re3 {[%emt 0:01:27]} Nhf4 {[%emt 0:00:33]} 19. Qd2 {[%emt 0:00:28]} Qf6 {[%emt 0:00:53]} 20. Rae1 {[%emt 0:02:07]} h6 {[%emt 0:00:36]} 21. Na4 {[%emt 0:01:30]} Rf7 {[%emt 0:02:02]} 22. b3 {[%emt 0:01:58]} Raf8 {[%emt 0:00:31]} 23. Nxb6 {[%emt 0:00:37]} axb6 {[%emt 0:00:26]} 24. a4 {[%emt 0:02:17]} Qf5 {[%emt 0:01:35]} 25. Bg3 {[%emt 0:01:50]} Qh5 {[%emt 0:01:11]} 26. Ne5 {[%emt 0:00:52]} Nxe5 {[%emt 0:00:34]} 27. Rxe5 {[%emt 0:00:43]} Qg6 {[%emt 0:00:26]} 28. Re7 {[%emt 0:01:17]} Nh5 {[%emt 0:01:52]} 29. R7e6 {[%emt 0:01:08]} Rf6 {[%emt 0:00:37]} 30. Rxf6 {[%emt 0:01:49]} Nxf6 {[%emt 0:00:27]} 31. Bd6 {[%emt 0:00:27]} Rf7 {[%emt 0:01:28]} 32. f3 {[%emt 0:00:29]} Nh5 {[%emt 0:00:43]} 33. Bb8 {[%emt 0:00:39]} Rxf3 {[%emt 0:00:32]} 34. Re3 {[%emt 0:01:00]} Qb1+ {[%emt 0:00:49]} 35. Re1 {[%emt 0:00:32]} Qg6 {[%emt 0:00:26]} 36. Re3 {[%emt 0:00:27]} Rf7 {[%emt 0:01:15]} 37. Kh2 {[%emt 0:00:30]} Nf6 {[%emt 0:00:30]} 38. Qb4 {[%emt 0:01:08]} Qh5 {[%emt 0:01:10]} 39. Rf3 {[%emt 0:00:57]} Ng4+ {[%emt 0:00:33]} 40. Kg3 {[%emt 0:00:26]} Rxf3+ {[%emt 0:00:32]} 41. gxf3 {[%emt 0:00:27]} Ne3 {[%emt 0:00:33]} 42. Qxb6 {[%emt 0:00:44]} Qg5+ {[%emt 0:00:30]} 43. Kf2 {[%emt 0:00:27]} Nf5 {[%emt 0:00:37]} 44. Ke2 {[%emt 0:01:04]} Qe3+ {[%emt 0:00:37]} 45. Kd1 {[%emt 0:00:29]} Nxd4 {[%emt 0:00:45]} 46. Qc5 {[%emt 0:00:26]} Qe2+ {[%emt 0:00:07]} 0-1